bitfinex/quotes_ETHUSD_20250903
["timestamp","ask_amount","ask_price","bid_price","bid_amount"]
[1756881520600,19.82339619,4321.6,4321.5,0.004]
[1756881520902,20.030005,4321.6,4321.5,0.004]
[1756881521483,20.504805,4321.6,4321.5,0.004]
[1756881521689,27.664805,4321.6,4321.5,0.004]
[1756881523190,3.10617198,4321.2,4321.1,0.004]
[1756881523387,17.42011038,4321.2,4321.1,0.004]
[1756881523594,18.19261038,4321.2,4321.1,0.004]
[1756881525090,25.35261038,4321.2,4321.1,0.004]
[1756881525700,24.58011038,4321.2,4321.1,0.004]
[1756881525905,24.58011038,4321.2,4321.1,0.3003]
[1756881526299,12.59017198,4321.2,4321.1,1.2282]
[1756881526478,16.45217198,4321.2,4321.1,1.2282]
[1756881527100,16.45217198,4321.2,4321.1,0.792]
[1756881529519,22.46168015,4321.2,4321.1,0.792]
[1756881530086,22.46168015,4321.2,4321.1,0.3003]
[1756881532735,22.46168015,4321.2,4321.1,0.792]
[1756881534542,16.45217198,4321.2,4321.1,0.792]
[1756881534749,22.46168015,4321.2,4321.1,1.2282]
[1756881535450,22.46168015,4321.2,4321.1,0.004]
[1756881535451,23.56838015,4321.2,4321.1,0.004]
[1756881536616,23.25368015,4321.2,4321.1,0.004]
[1756881537057,23.56838015,4321.2,4321.1,0.004]
[1756881539054,24.02618015,4321.2,4321.1,0.004]
[1756881539463,23.56838015,4321.2,4321.1,0.004]
[1756881540524,23.25368015,4321.2,4321.1,0.004]
[1756881541169,23.25368015,4321.2,4321.1,0.8095]
[1756881541324,23.25368015,4321.2,4321.1,0.3115]
[1756881541533,23.25368015,4321.2,4321.1,0.004]
[1756881543088,24.02538015,4321.2,4321.1,0.004]
[1756881546344,23.55478015,4321.2,4321.1,0.004]
[1756881547200,23.25368015,4321.2,4321.1,0.8095]
[1756881547406,7.16,4321.2,4321.1,1.2701]
[1756881547545,3.978,4321.2,4321.1,1.2701]
[1756881547951,6.978,4321.2,4321.1,1.2701]
[1756881553207,9.29217198,4321.2,4321.1,1.2701]
[1756881553910,15.30168015,4321.2,4321.1,0.8095]
[1756881554217,15.30168015,4321.2,4321.1,1.2701]
[1756881554592,15.30168015,4321.2,4321.1,0.3115]
[1756881554793,15.60278015,4321.2,4321.1,0.004]
[1756881554995,16.07338015,4321.2,4321.1,0.004]
[1756881555394,15.60278015,4321.2,4321.1,0.004]
[1756881555908,15.30168015,4321.2,4321.1,0.004]
[1756881556306,15.30168015,4321.2,4321.1,0.3115]
[1756881557289,6.977,4321.2,4321.1,1.2701]
[1756881559588,9.29117198,4321.2,4321.1,0.8095]
[1756881560617,9.29117198,4321.2,4321.1,0.3115]
[1756881562634,9.29117198,4321.2,4321.1,0.004]
[1756881562635,9.59227198,4321.2,4321.1,0.004]
[1756881562809,9.29117198,4321.2,4321.1,0.004]
[1756881564737,9.29117198,4321.2,4321.1,0.3115]
[1756881564908,9.59227198,4321.2,4321.1,0.004]
[1756881565101,9.29117198,4321.2,4321.1,0.3115]
[1756881565998,9.29117198,4321.2,4321.1,0.004]
[1756881566426,15.30068015,4321.2,4321.1,0.004]
[1756881566621,15.60178015,4321.2,4321.1,0.004]
[1756881566829,16.07238015,4321.2,4321.1,0.004]
[1756881567798,23.55378015,4321.2,4321.1,0.004]
[1756881568007,24.47818015,4321.2,4321.1,0.004]
[1756881571047,24.02438015,4321.2,4321.1,0.004]
[1756881571236,23.55378015,4321.2,4321.1,0.004]
[1756881571647,23.25268015,4321.2,4321.1,0.3064]
[1756881572150,23.53798015,4321.2,4321.1,0.004]
[1756881575549,16.45117198,4321.2,4321.1,1.2364]
[1756881576312,11.137,4321.2,4321.1,1.2364]
[1756881576764,14.137,4321.2,4321.1,1.2364]
[1756881577063,6.977,4321.2,4321.1,1.2364]
[1756881578330,3.116,4321.2,4321.1,1.2364]
[1756881578537,0.001,4321.4,4321.1,3.55062554]
[1756881578734,0.001,4321.4,4321.2,0.93]
[1756881578954,0.001,4321.4,4321.2,3.24415972]
[1756881579176,0.001,4321.4,4321.1,0.3064]
[1756881579177,0.001,4321.4,4321.3,18.04651843]
[1756881580778,0.001,4321.4,4321.3,15.7324]
[1756881585241,0.001,4321.4,4321.3,15.286]
[1756881585445,0.001,4321.4,4321.3,15.7324]
[1756881585846,0.001,4321.4,4321.3,1.2324]
[1756881586849,0.001,4321.4,4321.3,0.786]
[1756881590185,0.001,4321.4,4321.3,0.3024]
[1756881590579,0.001,4321.4,4321.1,0.004]
[1756881590883,3.2853,4321.2,4321.1,0.004]
[1756881591181,9.92637198,4321.2,4321.1,0.004]
[1756881591371,10.38517198,4321.2,4321.1,0.004]
[1756881592668,9.92637198,4321.2,4321.1,0.004]
[1756881595887,9.45947198,4321.2,4321.1,0.004]
[1756881601602,9.45947198,4321.2,4321.1,0.00219]
[1756881602389,9.89507198,4321.2,4321.1,0.00219]
[1756881603017,10.39247198,4321.2,4321.1,0.00219]
[1756881603786,17.55247198,4321.2,4321.1,0.00219]
[1756881606076,17.05507198,4321.2,4321.1,0.00219]
[1756881606285,17.55247198,4321.2,4321.1,0.00219]
[1756881612719,17.05507198,4321.2,4321.1,0.00219]
[1756881614033,17.55247198,4321.2,4321.1,0.00219]
[1756881614189,17.55347198,4321.2,4321.1,0.00219]
[1756881616922,17.05607198,4321.2,4321.1,0.00219]
[1756881620422,16.62047198,4321.2,4321.1,0.00219]
[1756881624230,17.05607198,4321.2,4321.1,0.00219]
[1756881628839,24.05720798,4321.2,4321.1,0.00219]
[1756881633056,23.62160798,4321.2,4321.1,0.00219]
[1756881636241,24.09180798,4321.2,4321.1,0.00219]
[1756881638544,24.88380798,4321.2,4321.1,0.00219]
[1756881638837,25.35930798,4321.2,4321.1,0.00219]
[1756881639412,25.35930798,4321.2,4320.3,0.4712]
[1756881639413,3.792,4321.1,4320.3,0.004]
[1756881639613,3.0,4320.4,4320.3,0.004]
[1756881639832,2.31486839,4319.9,4318.9,0.4609]
[1756881640038,16.51487137,4319.9,4319.2,0.4672]
[1756881640249,17.40687137,4319.9,4319.2,0.4672]
[1756881640448,18.19887137,4319.9,4319.2,0.4672]
[1756881640650,18.67437137,4319.9,4318.2,14.5]
[1756881640957,18.19887137,4319.9,4319.1,0.4672]
[1756881641634,18.67437137,4319.9,4319.1,0.4672]
[1756881642550,3.0,4319.8,4318.6,0.4672]
[1756881642853,0.908,4318.9,4318.5,0.4609]
[1756881643019,11.72040438,4318.9,4318.5,0.4609]
[1756881643209,12.02620438,4318.9,4318.4,0.4672]
[1756881643410,12.49640438,4318.9,4318.2,0.4609]
[1756881643715,12.02620438,4318.9,4318.1,0.4672]
[1756881643949,12.02620438,4318.9,4318.1,0.9281]
[1756881644116,11.72040438,4318.9,4318.8,0.3276]
[1756881644614,11.72040438,4318.9,4318.8,0.02]
[1756881644814,12.14218484,4318.9,4318.8,0.02]
[1756881646813,12.61238484,4318.9,4318.8,0.02]
[1756881648841,12.14218484,4318.9,4318.8,0.02]
[1756881649119,12.14218484,4318.9,4318.8,0.024]
[1756881649935,12.02620438,4318.9,4318.8,0.024]
[1756881650261,11.71940438,4318.9,4318.8,0.7988]
[1756881651269,11.71940438,4318.9,4318.8,0.3316]
[1756881651472,17.73598124,4318.9,4318.8,0.3316]
[1756881651621,18.04178124,4318.9,4318.8,0.024]
[1756881651963,17.73598124,4318.9,4318.8,0.024]
[1756881652124,11.71940438,4318.9,4318.8,0.3316]
[1756881652325,11.71940438,4318.9,4318.8,0.024]
[1756881652638,12.02520438,4318.9,4318.8,0.024]
[1756881654461,11.71940438,4318.9,4318.8,0.024]
[1756881655135,12.02520438,4318.9,4318.8,0.024]
[1756881656359,12.49540438,4318.9,4318.8,0.024]
[1756881656932,12.02520438,4318.9,4318.8,0.024]
[1756881657132,11.71940438,4318.9,4318.8,0.024]
[1756881658129,12.02520438,4318.9,4318.8,0.024]
[1756881658646,12.49540438,4318.9,4318.8,0.024]
[1756881659448,12.02520438,4318.9,4318.8,0.024]
[1756881659655,12.46670438,4318.9,4318.8,0.024]
[1756881660040,12.02520438,4318.9,4318.8,0.024]
[1756881660842,11.71940438,4318.9,4318.8,0.024]
[1756881661163,11.71940438,4318.9,4318.8,0.3143]
[1756881662131,7.85540438,4318.9,4318.8,0.7893]
[1756881662331,11.71740438,4318.9,4318.8,0.7893]
[1756881663763,7.85540438,4318.9,4318.8,0.7893]
[1756881663934,11.71740438,4318.9,4318.8,0.7893]
[1756881665634,7.85540438,4318.9,4318.8,0.7893]
[1756881665866,7.85540438,4318.9,4318.8,1.2274]
[1756881665867,4.06340438,4318.9,4318.8,1.2274]
[1756881666166,7.92540438,4318.9,4318.8,1.2274]
[1756881666479,8.61,4318.9,4318.8,1.2274]
[1756881667033,1.748,4318.9,4318.8,1.2274]
[1756881667265,5.61,4318.9,4318.8,1.2274]
[1756881667562,8.61,4318.9,4318.8,1.2274]
[1756881668680,6.978,4318.9,4318.8,1.2274]
[1756881669971,3.116,4318.9,4318.8,1.2274]
[1756881670378,3.0,4318.9,4318.8,3.54285799]
[1756881670538,0.69606619,4319.0,4318.9,2.31540438]
[1756881670744,0.116,4319.1,4319.0,2.31535077]
[1756881670942,0.81205649,4319.1,4319.0,17.29035077]
[1756881671186,0.81205649,4319.1,4319.0,18.01875077]
[1756881671365,0.116,4319.1,4319.0,18.01875077]
[1756881671878,1.632,4319.6,4319.0,18.01875077]
[1756881672100,0.116,4319.4,4319.1,0.9131]
[1756881672244,0.116,4319.4,4319.3,0.2903]
[1756881672649,0.116,4319.4,4319.3,1.2034]
[1756881684150,0.116,4319.4,4319.3,1.2074]
[1756881685079,0.116,4319.4,4319.3,3.52258996]
[1756881685580,0.116,4319.4,4319.3,1.2074]
[1756881685988,0.116,4319.4,4319.3,1.23055189]
[1756881686193,0.116,4319.4,4319.3,1.2074]
[1756881687902,0.116,4319.4,4319.3,3.52258996]
[1756881688102,0.001,4319.8,4319.3,5.0684]
[1756881688406,0.001,4319.8,4319.7,2.31497557]
[1756881688565,0.001,4319.8,4319.7,6.17597557]
[1756881688774,0.001,4319.8,4319.7,7.37937557]
[1756881691461,0.001,4319.8,4319.7,21.87937557]
[1756881691661,0.117,4319.8,4319.7,21.87937557]
[1756881697490,0.117,4319.8,4319.7,21.87837557]
[1756881697694,0.117,4319.8,4319.7,19.1253]
[1756881697867,6.89857686,4319.8,4319.3,0.004]
[1756881698068,6.01657686,4319.4,4319.3,0.004]
[1756881698271,9.01657686,4319.4,4319.3,0.004]
[1756881698474,14.09787686,4319.4,4319.3,0.004]
[1756881698679,16.41301322,4319.4,4319.3,0.004]
[1756881701930,18.04501322,4319.4,4319.3,0.004]
[1756881702288,25.04614922,4319.4,4319.3,0.004]
[1756881709004,32.20614922,4319.4,4319.3,0.004]
[1756881710431,31.75364922,4319.4,4319.3,0.004]
[1756881713533,25.73707236,4319.4,4319.3,0.004]
[1756881715928,25.73707236,4319.4,4319.3,0.7731]
[1756881715929,21.10827236,4319.4,4319.3,0.7731]
[1756881716109,24.96927236,4319.4,4319.3,0.7731]
[1756881716309,25.28177236,4319.4,4319.3,0.004]
[1756881716531,25.73807236,4319.4,4319.3,0.004]
[1756881717501,25.28177236,4319.4,4319.3,0.004]
[1756881717732,26.19057236,4319.4,4319.3,0.004]
[1756881718029,25.28177236,4319.4,4319.3,0.004]
[1756881718263,24.96927236,4319.4,4319.3,0.004]
[1756881718637,24.96927236,4319.4,4319.3,0.3138]
[1756881718837,24.96927236,4319.4,4319.3,1.2309]
[1756881719137,19.654136,4319.4,4319.3,1.2309]
[1756881719301,21.96927236,4319.4,4319.3,0.004]
[1756881719506,25.25897236,4319.4,4319.3,0.004]
[1756881719706,25.37497236,4319.4,4319.3,0.004]
[1756881720510,22.770136,4319.4,4319.3,0.3097]
[1756881720817,15.610136,4319.4,4319.3,1.202]
[1756881721414,11.749136,4319.4,4319.3,1.202]
[1756881721640,15.610136,4319.4,4319.3,1.202]
[1756881722211,8.609,4319.4,4319.3,1.202]
[1756881723529,8.609,4319.4,4319.3,0.7722]
[1756881723855,10.92413636,4319.4,4319.3,0.7722]
[1756881724439,8.609,4319.4,4319.3,0.7722]
[1756881724943,8.609,4319.4,4319.3,0.3097]
[1756881725624,8.609,4319.4,4319.3,1.202]
[1756881725816,9.29213636,4319.4,4319.3,0.7722]
[1756881726140,6.977,4319.4,4319.3,0.7722]
[1756881726858,9.29213636,4319.4,4319.3,0.3097]
[1756881727226,6.977,4319.4,4319.3,0.3097]
[1756881728744,9.29213636,4319.4,4319.3,0.3097]
[1756881729860,6.977,4319.4,4319.3,0.004]
[1756881730216,6.977,4319.4,4319.3,0.3097]
[1756881733758,9.29213636,4319.4,4319.3,0.3097]
[1756881734253,6.977,4319.4,4319.3,0.3097]
[1756881735323,9.29213636,4319.4,4319.3,0.3097]
[1756881735523,6.977,4319.4,4319.3,0.3097]
[1756881735723,6.977,4319.4,4319.3,0.7722]
[1756881736124,9.29213636,4319.4,4319.3,0.3097]
[1756881736618,9.29213636,4319.4,4319.3,0.004]
[1756881738162,9.58183636,4319.4,4319.3,0.004]
[1756881738328,10.04263636,4319.4,4319.3,0.004]
[1756881738657,10.50113636,4319.4,4319.3,0.004]
[1756881739022,6.977,4319.4,4319.3,0.3097]
[1756881739222,9.58183636,4319.4,4319.3,0.004]
[1756881739421,9.58183636,4319.4,4319.3,0.3097]
[1756881739422,9.29213636,4319.4,4319.3,0.3097]
[1756881739657,9.29213636,4319.4,4319.3,0.7722]
[1756881739954,3.116,4319.4,4319.3,0.7722]
[1756881740140,6.976,4319.4,4319.3,0.7722]
[1756881740347,6.976,4319.4,4319.3,1.202]
[1756881740766,6.976,4319.4,4319.3,0.7722]
[1756881741557,9.29113636,4319.4,4319.3,0.004]
[1756881741733,10.04163636,4319.4,4319.3,0.004]
[1756881741937,10.50013636,4319.4,4319.3,0.004]
[1756881744856,10.04163636,4319.4,4319.3,0.004]
[1756881745857,9.29113636,4319.4,4319.3,0.3097]
[1756881747042,9.29113636,4319.4,4319.3,0.004]
[1756881747357,5.43113636,4319.4,4319.3,0.7722]
[1756881747548,6.976,4319.4,4319.3,1.202]
[1756881747723,9.29113636,4319.4,4319.3,1.202]
[1756881749863,6.976,4319.4,4319.3,1.202]
[1756881750029,9.29113636,4319.4,4319.3,1.202]
[1756881751264,9.29113636,4319.4,4319.3,0.3097]
[1756881751666,9.58813636,4319.4,4319.3,0.004]
[1756881751842,10.04733636,4319.4,4319.3,0.004]
[1756881752247,10.50913636,4319.4,4319.3,0.004]
[1756881753561,17.66913636,4319.4,4319.3,0.004]
[1756881755483,17.20733636,4319.4,4319.3,0.004]
[1756881755835,24.55390781,4319.4,4319.3,0.004]
[1756881759549,23.79770781,4319.4,4319.3,0.3101]
[1756881759747,19.93770781,4319.4,4319.3,0.3101]
[1756881759948,23.79770781,4319.4,4319.3,0.3101]
[1756881760564,16.45113636,4319.4,4319.3,1.2413]
[1756881761441,16.45113636,4319.4,4319.3,0.7812]
[1756881763274,16.45113636,4319.4,4319.3,1.2413]
[1756881763466,16.45113636,4319.4,4319.3,0.7812]
[1756881763776,16.45113636,4319.4,4319.3,0.3101]
[1756881765857,16.45113636,4319.4,4319.3,0.004]
[1756881769162,16.45113636,4319.4,4319.3,0.7812]
[1756881769484,16.45113636,4319.4,4319.3,1.2413]
[1756881769674,16.45113636,4319.4,4319.3,0.7812]
[1756881770589,16.45113636,4319.4,4319.3,0.3101]
[1756881771360,16.45113636,4319.4,4319.3,0.004]
[1756881771562,17.20733636,4319.4,4319.3,0.004]
[1756881771756,17.66913636,4319.4,4319.3,0.004]
[1756881772081,16.45113636,4319.4,4319.3,0.7702]
[1756881772284,16.45113636,4319.4,4319.3,0.7812]
[1756881772491,12.59113636,4319.4,4319.3,0.7812]
[1756881772784,14.136,4319.4,4319.3,1.2413]
[1756881772985,0.81210979,4319.5,4319.3,1.2413]
[1756881773196,0.001,4319.8,4319.4,2.78623636]
[1756881773489,0.69595315,4319.6,4319.4,3.24633636]
[1756881773655,0.69595315,4319.6,4319.5,1.2373]
[1756881773856,0.001,4319.8,4319.7,2.31497557]
[1756881774065,0.001,4319.8,4319.6,3.24622432]
[1756881774269,0.6969144,4319.8,4319.6,3.24622432]
[1756881774470,0.6969144,4319.8,4319.7,1.2373]
[1756881775591,0.6969144,4319.8,4319.7,3.55227557]
[1756881778187,0.6969144,4319.8,4319.7,1.2373]
[1756881779099,0.6969144,4319.8,4319.7,3.55227557]
[1756881779298,0.6969144,4319.8,4319.7,18.05227557]
[1756881779498,0.6969144,4319.8,4319.7,15.2772]
[1756881779795,0.6969144,4319.8,4319.7,18.05747557]
[1756881779970,0.6969144,4319.8,4319.7,15.7425]
[1756881780401,0.6969144,4319.8,4319.7,18.05747557]
[1756881781768,1.4291144,4319.8,4319.5,0.116]
[1756881781969,0.9883144,4319.8,4319.3,2.4351867]
[1756881782178,0.9883144,4319.8,4319.4,0.9194]
[1756881782598,6.12695437,4319.6,4319.3,0.004]
[1756881783107,2.60653636,4319.4,4319.3,0.004]
[1756881783318,9.46553636,4319.4,4319.3,0.004]
[1756881783826,15.91729073,4319.4,4319.3,0.004]
[1756881785087,16.41209073,4319.4,4319.3,0.004]
[1756881786302,15.91729073,4319.4,4319.3,0.004]
[1756881788912,7.1504,4319.4,4319.3,0.004]
[1756881789088,3.0,4319.4,4319.3,0.3043]
[1756881789288,3.8482,4319.4,4319.3,0.004]
[1756881790098,3.116,4319.4,4319.3,0.7584]
[1756881790284,3.116,4319.4,4319.3,1.2237]
[1756881790613,3.116,4319.4,4319.3,0.7584]
[1756881791184,9.41835437,4319.4,4319.3,0.004]
[1756881791492,12.17429073,4319.4,4319.3,0.004]
[1756881791810,12.66909073,4319.4,4319.3,0.004]
[1756881794087,9.85915437,4319.4,4319.3,0.004]
[1756881794281,9.12695437,4319.4,4319.3,0.004]
[1756881794618,11.44209073,4319.4,4319.3,0.004]
[1756881794911,11.73349073,4319.4,4319.3,0.004]
[1756881796918,9.12695437,4319.4,4319.3,0.004]
[1756881797213,11.73349073,4319.4,4319.3,0.004]
[1756881797414,9.12695437,4319.4,4319.3,0.3043]
[1756881797615,12.98595437,4319.4,4319.3,0.3043]
[1756881797920,15.30109073,4319.4,4319.3,0.004]
[1756881798325,15.59249073,4319.4,4319.3,0.004]
[1756881798715,15.30109073,4319.4,4319.3,0.004]
[1756881799988,12.98595437,4319.4,4319.3,0.3043]
[1756881801194,6.975,4319.4,4319.3,1.2237]
[1756881802090,3.116,4319.4,4319.3,1.2237]
[1756881802421,3.116,4319.4,4319.3,0.7584]
[1756881802924,3.116,4319.4,4319.3,0.3043]
[1756881803494,9.41835437,4319.4,4319.3,0.004]
[1756881803690,12.17429073,4319.4,4319.3,0.004]
[1756881804230,9.41835437,4319.4,4319.3,0.00159799]
[1756881804430,9.12695437,4319.4,4319.3,0.00159799]
[1756881804730,9.12695437,4319.4,4319.3,0.30189799]
[1756881804937,9.12695437,4319.4,4319.3,0.75599799]
[1756881805431,3.116,4319.4,4319.3,1.22129799]
[1756881805736,3.116,4319.4,4319.3,3.53648795]
[1756881806207,3.0,4319.4,4319.3,1.22129799]
[1756881807638,0.09281464,4319.5,4319.4,2.31513636]
[1756881807844,0.001,4319.8,4319.4,0.9194]
[1756881808139,0.001,4319.8,4319.7,0.3003]
[1756881808501,0.2924,4319.8,4319.5,0.4541]
[1756881808836,0.2924,4319.8,4319.3,2.43278013]
[1756881809018,0.001,4319.8,4319.4,0.4653]
[1756881809537,0.001,4319.8,4319.4,0.9361]
[1756881810534,0.001,4319.8,4319.4,3.25123168]
[1756881810739,0.001,4319.8,4319.7,0.2994]
[1756881811252,0.001,4319.8,4319.7,1.2389]
[1756881812361,0.001,4319.8,4319.7,0.7702]
[1756881812562,0.001,4319.8,4319.7,3.55387557]
[1756881814872,0.001,4319.8,4319.7,7.41187557]
[1756881821476,0.001,4319.8,4319.7,9.04387557]
[1756881821674,0.001,4319.8,4319.7,9.15987557]
[1756881821832,0.001,4319.8,4319.7,5.30187557]
[1756881822039,0.001,4319.8,4319.7,9.15987557]
[1756881830782,0.001,4319.8,4319.7,5.30187557]
[1756881830981,0.001,4319.8,4319.7,9.15887557]
[1756881832052,0.001,4319.8,4319.7,23.65887557]
[1756881833385,0.001,4319.8,4319.7,24.45087557]
[1756881833880,0.001,4320.3,4319.8,0.792]
[1756881834182,0.001,4320.3,4320.2,9.23366202]
[1756881834380,0.001,4320.3,4320.2,13.39006202]
[1756881834580,0.001,4320.3,4320.2,28.82956202]
[1756881835590,0.001,4320.3,4320.2,22.81860765]
[1756881841274,0.001,4320.7,4320.5,0.792]
[1756881841589,0.001,4320.7,4320.6,8.73263828]
[1756881841777,0.001,4320.7,4320.6,9.93289335]
[1756881842158,0.001,4320.7,4320.6,5.62819335]
[1756881842363,0.001,4320.7,4320.6,8.99919335]
[1756881842787,0.001,4320.7,4320.6,5.14319335]
[1756881842991,0.001,4320.7,4320.6,8.99919335]
[1756881844187,0.001,4320.7,4320.6,9.48419335]
[1756881844387,0.001,4320.7,4320.6,9.93289335]
[1756881845064,0.001,4320.7,4320.6,6.07689335]
[1756881845263,0.001,4320.7,4320.6,9.93289335]
[1756881845490,0.001,4320.7,4320.6,9.48419335]
[1756881846368,0.001,4320.7,4320.6,9.93289335]
[1756881847593,0.02,4320.8,4320.7,2.31443978]
[1756881847798,0.02,4320.8,4320.7,2.33758417]
[1756881847998,0.02,4320.8,4320.7,3.56098417]
[1756881848179,0.02,4320.8,4320.7,18.06098417]
[1756881848379,0.02,4320.8,4320.7,18.03783978]
[1756881848592,1e-08,4320.8,4320.7,18.03783978]
[1756881849704,1e-08,4320.8,4320.7,18.82983978]
[1756881853785,1e-08,4320.8,4320.7,18.09143978]
[1756881853994,0.30010001,4320.8,4320.7,21.46143978]
[1756881854488,1e-08,4320.8,4320.7,21.75113978]
[1756881854694,1e-08,4320.8,4320.7,22.68483978]
[1756881855186,1e-08,4320.8,4320.7,22.23613978]
[1756881855997,1e-08,4320.8,4320.7,21.75113978]
[1756881857619,1e-08,4320.8,4320.7,17.89613978]
[1756881857826,1e-08,4320.8,4320.7,21.75113978]
[1756881858387,1e-08,4320.8,4320.7,17.60643978]
[1756881858588,0.30010001,4320.8,4320.7,21.46143978]
[1756881859514,1e-08,4320.8,4320.7,21.46143978]
[1756881860023,1e-08,4320.8,4320.7,21.75113978]
[1756881860518,1e-08,4320.8,4320.7,17.89613978]
[1756881860726,1e-08,4320.8,4320.7,22.68483978]
[1756881860932,1e-08,4320.8,4320.7,21.75113978]
[1756881861526,1e-08,4320.8,4320.7,22.23613978]
[1756881861820,1e-08,4320.8,4320.7,22.68483978]
[1756881862618,1e-08,4320.8,4320.7,22.23613978]
[1756881864001,0.30010001,4320.8,4320.7,21.46143978]
[1756881864318,0.74410001,4320.8,4320.7,21.46143978]
[1756881865194,0.30010001,4320.8,4320.7,21.46143978]
[1756881868335,0.30110001,4320.8,4320.7,21.46143978]
[1756881870194,0.30110001,4320.8,4320.7,17.60643978]
[1756881870397,1.21480001,4320.8,4320.7,17.60643978]
[1756881870616,1.21480001,4320.8,4320.7,16.81443978]
[1756881870942,1.21480001,4320.8,4320.7,20.66843978]
[1756881874843,1.21480001,4320.8,4320.7,16.81443978]
[1756881875142,1.21480001,4320.8,4320.7,20.66843978]
[1756881875306,0.30110001,4320.8,4320.7,20.66843978]
[1756881875638,0.73310001,4320.8,4320.7,20.66843978]
[1756881882250,1.21480001,4320.8,4320.7,20.66843978]
[1756881883489,1.21480001,4320.8,4320.7,16.81443978]
[1756881883677,1.21480001,4320.8,4320.7,20.66843978]
[1756881884123,1.21480001,4320.8,4320.7,16.81443978]
[1756881884315,1.21480001,4320.8,4320.7,20.66843978]
[1756881885846,0.00100001,4320.8,4320.7,20.66843978]
[1756881886547,0.31370001,4320.8,4320.7,20.66843978]
[1756881886713,0.00100001,4320.8,4320.7,20.66843978]
[1756881887048,0.00100001,4320.8,4320.7,21.41723978]
[1756881888033,0.00100001,4320.8,4320.7,20.96593978]
[1756881889020,0.31370001,4320.8,4320.7,16.81443978]
[1756881889221,0.31370001,4320.8,4320.7,20.66843978]
[1756881891561,0.74570001,4320.8,4320.7,20.66843978]
[1756881892719,0.00100001,4320.8,4320.7,20.66843978]
[1756881893052,0.31370001,4320.8,4320.7,20.66843978]
[1756881893955,0.31370001,4320.8,4312.4,12.08365774]
[1756881893956,1.22740001,4320.8,4319.8,0.004]
[1756881894251,5.31492198,4319.8,4317.8,3.18899037]
[1756881894418,5.31492198,4319.8,4317.8,0.02]
[1756881894419,3.0,4319.1,4317.8,0.02]
[1756881894623,3.3127,4318.9,4318.0,0.951]
[1756881894853,5.62810438,4318.9,4318.0,0.951]
[1756881895058,6.54180438,4318.9,4318.0,0.951]
[1756881895422,12.55770615,4318.9,4318.0,0.951]
[1756881895749,12.55770615,4318.9,4318.3,3.918]
[1756881896853,12.55770615,4318.9,4317.8,0.02]
[1756881897048,12.55770615,4318.9,4318.2,3.918]
[1756881900655,6.54180438,4318.9,4318.2,3.918]
[1756881900857,12.55770615,4318.9,4318.2,3.918]
[1756881901630,12.55770615,4318.9,4318.2,18.418]
[1756881902955,9.32860177,4318.9,4318.3,0.4921]
[1756881903155,11.64400615,4318.9,4318.3,0.4921]
[1756881903348,12.11680615,4318.9,4318.3,0.4921]
[1756881903764,12.57020615,4318.9,4318.2,18.414]
[1756881904568,12.68620615,4318.9,4318.3,0.116]
[1756881905063,12.23280615,4318.9,4318.3,0.116]
[1756881905831,12.68620615,4318.9,4318.3,0.116]
[1756881906785,16.59820615,4318.9,4317.8,0.02]
[1756881906963,16.59820615,4318.9,4318.3,0.004]
[1756881907753,12.68620615,4318.9,4318.3,0.004]
[1756881907954,3.116,4318.9,4318.5,0.4921]
[1756881908464,3.116,4318.9,4318.8,0.832]
[1756881908769,3.116,4318.9,4318.8,0.3399]
[1756881910592,3.116,4318.9,4318.8,0.024]
[1756881910779,6.21390438,4318.9,4318.8,0.024]
[1756881910962,6.66730438,4318.9,4318.8,0.024]
[1756881911293,10.57930438,4318.9,4318.8,0.024]
[1756881911455,6.66730438,4318.9,4318.8,0.024]
[1756881911655,10.57930438,4318.9,4318.8,0.024]
[1756881915689,16.59520615,4318.9,4318.8,0.024]
[1756881917871,16.14080615,4318.9,4318.8,0.024]
[1756881918071,12.22980615,4318.9,4318.8,0.024]
[1756881918700,11.75700615,4318.9,4318.8,0.024]
[1756881918890,16.59320615,4318.9,4318.8,0.024]
[1756881920410,18.22520615,4318.9,4318.8,0.024]
[1756881921711,2.31567247,4318.4,4318.3,0.004]
[1756881922009,12.35657424,4318.4,4318.3,0.004]
[1756881922175,13.59247424,4318.4,4318.3,0.004]
[1756881922578,16.59247424,4318.4,4318.3,0.004]
[1756881924311,16.59247424,4318.4,4317.9,0.004]
[1756881924312,8.33178875,4318.0,4317.9,0.004]
[1756881924487,12.35578875,4318.0,4317.9,0.004]
[1756881924693,12.66548875,4318.0,4317.9,0.004]
[1756881925213,12.35578875,4318.0,4317.9,0.812]
[1756881925711,4.023,4318.0,4317.9,1.2773]
[1756881926009,3.116,4318.0,4317.9,1.2773]
[1756881927418,3.116,4318.0,4317.9,0.3199]
[1756881927720,5.43188698,4318.0,4317.9,0.3199]
[1756881928103,3.116,4318.0,4317.9,0.3199]
[1756881929008,3.116,4318.0,4317.9,0.53681628]
[1756881929880,3.116,4318.0,4317.9,0.98821628]
[1756881930109,3.116,4318.0,4317.9,1.45141628]
[1756881932086,3.116,4318.0,4317.9,0.98821628]
[1756881932492,3.116,4318.0,4317.9,0.53681628]
[1756881932707,3.116,4318.0,4317.9,0.52281628]
[1756881933021,3.116,4318.0,4317.9,0.22091628]
[1756881933613,9.62228698,4318.0,4317.9,0.22091628]
[1756881934320,10.07458698,4318.0,4317.9,0.22091628]
[1756881934815,9.62228698,4318.0,4317.9,0.22091628]
[1756881936336,3.116,4318.0,4317.9,0.52281628]
[1756881936505,7.019,4318.0,4317.9,0.52281628]
[1756881936700,7.019,4318.0,4317.9,0.22091628]
[1756881936900,3.116,4318.0,4317.9,0.52281628]